Workbook

Sheet Instrucciones

Sheet Incertidumbre curva de calibrac
D1: FORMATO ESTIMACIÓN DE LA INCERTIDUMBRE - CURVA DE CALIBRACIÓN | N1: Código: SLC-F077
N2: Versión: 03
N3: Fecha: 17072025
N4: Página: 1 de 1
C6: MÉTODO | E6: Determinación de hidrocarburos totales
C7: REFERENCIA | E7: NTC 3362
C8: INSTRUCTIVO DE ENSAYO | E8: M-S-LC-XXXX
C9: MATRIZ | E9: Agua
C10: DATA | E10: M-S-LC-F020, Folio 1, 2.
A12: DEFINICIÓN DE LAS FUENTES DE INCERTIDUMBRE
F14: S=f(C,r)
D16: S | F16: Fósforo reactivo disuelto, mg/L
D17: C | F17: Desviación asociada a la curva de calibración | L17: =IF(E17=1,"Ingrese el valor del volumen y temperatura =>","") -> 
D18: r | F18: Repetibilidad del analista | L18: =IF(E18=1,"Ingrese el valor del volumen y temperatura =>","") -> 
B22: DATA APORTADA | I22: CUANTIFICACIÓN DE FUENTES
I23: Se consideran significativas la variaciones aleatorias en y, su cuantificación se realiza mediante la siguiente ecuación:
C24: Curva de calibración | E24: Muestra analizada | R24: Tabla G.2 GUM 2008
C25: Concentración del patrón (x) | D25: Señal promedio obtenida (y) | E25: No. de ensayo | F25: Señal obtenida (ym) | G25: Concentración del analito | R25: 1 | S25: 13.97
C26: 0.03 | D26: 0.01962 | E26: 1 | F26: 0.042318 | G26: 0.01 | I26: Estadística de la curva de calibración (modelo y = ax + b) | L26: Incertidumbre tipica combinada uc(y) | M26: Factor de cobertura | N26: Incertidumbre Expandida U | R26: 2 | S26: 4.53
C27: 0.1 | D27: 0.063265 | E27: 2 | F27: 0.041036 | G27: 0.0097 | R27: 3 | S27: 3.31
C28: 0.3 | D28: 0.1944366667 | E28: 3 | F28: 0.041514 | G28: 0.00944 | I28: Número de replicas de la curva (n) | K28: =D34*D35 -> 15 | L28: =SQRT(SUMSQ(K38,K39)) -> 0.0009395364162 | M28: =_xlfn.T.INV.2T(0.05,K28-2) -> 2.160368656 | N28: =L28*M28 -> 0.002029745025 | R28: 4 | S28: 2.87
C29: 0.5 | D29: 0.3211666667 | E29: 4 | F29: 0,0383,44 | G29: 0.0105 | I29: R | K29: =CORREL(C26:C30,D26:D30) -> 0.9999920709 | R29: 5 | S29: 2.65
C30: 1 | D30: 0.6452233333 | E30: 5 | F30: 0.040248 | G30: 0.0103 | I30: b | K30: =INTERCEPT(D26:D33,C26:C33) -> -0.0003306539367 | R30: 6 | S30: 2.52
E31: 6 | F31: 0.038845 | G31: 0.00968 | I31: a | K31: =SLOPE(D26:D33,C26:C33) -> 0.6452668064 | R31: 7 | S31: 2.43
E32: 7 | F32: 0.040765 | G32: 0.00968 | I32: Desviación estandar de los residuales (S) | K32: =STEYX(D26:D33,C26:C33) -> 0.001154820568 | R32: 8 | S32: 2.37
E33: 8 | F33: 0.042542 | G33: 0.00968 | I33: Promedio de concentración de los calibrantes, (x) | K33: =AVERAGE(C26:C33) -> 0.386 | R33: 9 | S33: 2.32
C34: Ingrese el número de replicas por punto | D34: 3 | E34: 9 | F34: 0.040096 | G34: 0.00968 | I34: Sxx | K34: =(SUMSQ(C26:C33))-(SUM(C26:C30)^2/K28) -> 1.102573333 | R34: 10 | S34: 2.28
C35: Numero de puntos de calibración | D35: =COUNT(D26:D33) -> 5 | E35: 10 | F35: 0.041284 | G35: 0.00968 | I35: Estadística del análisis de muestra | R35: 11 | S35: 2.25
C36: Factor de dilución | G36: 1 | I36: Número de replicas de la muestra (p) | K36: =COUNT(F26:F35) -> 9 | R36: 12 | S36: 2.23
I37: Concentración de analito hallada por interpolacion, Xpred | K37: =(AVERAGE(F26:F35)-K30)/K31 -> 0.06399142559 | R37: 13 | S37: 2.21
I38: Incertidumbre típica de la curva | K38: =K32/K31*SQRT((1/K36)+(1/K28)+((K37-K33)^2)/K34) -> 0.0009330752478 | R38: 14 | S38: 2.2
I39: Incertidumbre típica relativa a la repetibilidad | K39: =_xlfn.STDEV.S(G26:G35)/SQRT(K36) -> 0.0001099966329 | R39: 15 | S39: 2.18
A42: EXPRESIÓN RESULTADO
E44: =+F16 -> Fósforo reactivo disuelto, mg/L | H44: =G36*AVERAGE(G26:G35) -> 0.009834
E45: Incertidumbre expandida a 95,45 % | H45: =N28 -> 0.002029745025
A48: CONTRIBUCIÓN DE FUENTES
E50: Componente de la incertidumbre tipica u(xi) | H50: Contribución %
E51: =I38 -> Incertidumbre típica de la curva | H51: =K38*100/SUM(K38+K39) -> 89.45454911
E52: =I39 -> Incertidumbre típica relativa a la repetibilidad | H52: =K39*100/SUM(K39+K38) -> 10.54545089
B68: HISTORIAL DE CAMBIOS
A69: VERSIÓN | C69: FECHA | D69: DESCRIPCIÓN
A70: 01 | C70: 2018-11-06 | D70: Creación del documento con base a la nueva estructura del SGI.
A71: 02 | C71: 2020-12-11 | D71: Nueva versión producto de la actualización de la documentación del Sistema Integrado de Gestión, por parte del funcionario Renzzo González.
B72: 3 | C72: 2025-07-17 | D72: Se actualiza el Formato de acuerdo con el memorando enviado por la OAP memorando 20251100097283 lineamientos para la actualización documental en el marco de la implementación del aplicativo suite visión. El código pasa de M-S-LC-F077 a SLC-F077.
A73: ELABORÓ: Elizabeth González Mateus Contratista Laboratorio de Calidad Ambiental | F73: REVISÓ: Carlos Martín Velásquez Ramírez Contratista Líder Técnico Grupo Laboratorio de Calidad Ambiental | K73: APROBÓ: Claudia María Ávila Laverde Coordinadora Grupo Laboratorio de Calidad Ambiental

Sheet Incertidumbre medidas directas
D1: FORMATO ESTIMACIÓN DE LA INCERTIDUMBRE - MEDIDAS DIRECTAS | N1: Código: SLC-F077
N2: Versión: 03
N3: Fecha: 17072025
N4: Página: 1 de 1
C6: MÉTODO | E6: Determinación de hidrocarburos totales
C7: REFERENCIA | E7: NTC 3362
C8: INSTRUCTIVO DE ENSAYO | E8: M-S-LC-XXXX
C9: MATRIZ | E9: Agua
C10: DATA | E10: (Indicar el documento de donde se tomaron los datos)
A12: DEFINICIÓN DE LAS FUENTES DE INCERTIDUMBRE
R13: Tabla G.2 GUM 2008
F14: S=f(T) | R14: 1 | S14: 13.97
R15: 2 | S15: 4.53
C16: S | F16: pH | N16: =IF(N(E23)>0,"VOLUMEN","") ->  | O16: =IF(N(E23)>0,"TEMPERATURA","") ->  | R16: 3 | S16: 3.31
C17: T | E17: =SEARCH("VOLUMEN",F17,1) ->  | F17: Temperatura | L17: =IF(E17=1,"Ingrese el valor del volumen y temperatura =>","") ->  | R17: 4 | S17: 2.87
E18: =SEARCH("VOLUMEN",F18,1) ->  | F18: ga | L18: =IF(E18=1,"Ingrese el valor del volumen y temperatura =>","") ->  | R18: 5 | S18: 2.65
E19: =SEARCH("VOLUMEN",F19,1) ->  | F19: vol | L19: =IF(E19=1,"Ingrese el valor del volumen y temperatura =>","") ->  | R19: 6 | S19: 2.52
E20: =SEARCH("VOLUMEN",F20,1) ->  | R20: 7 | S20: 2.43
R21: 8 | S21: 2.37
R22: 9 | S22: 2.32
C23: P | E23: =SUMIF(E17:E22,">0") -> 0 | F23: Patron de referencia | R23: 10 | S23: 2.28
R24: 11 | S24: 2.25
R25: 12 | S25: 2.23
R26: 13 | S26: 2.21
A27: DATA APORTADA | R27: 14 | S27: 2.2
I28: =IF(H32="NA","NA",(H32/I32)) -> 0.005 | R28: 15 | S28: 2.18
C29: Equipos/Instrumentos | D29: Rango | E29: Tipo | F29: Distribución | G29: Fuentes de incertidumbre | H29: Valor | I29: Factor de cobertura, k | L29: Precisión del método
E30: B | F30: Normal | G30: Tolerancia (MEP) | H30: NA | I30: 2 | L30: No. de ensayo | M30: Medida final
C31: Termómetro | D31: 0-100 | E31: B | F31: Triangular | G31: Resolución | H31: 0.1 | I31: NA | J31: NA | L31: 1 | M31: 10
E32: B | F32: Normal | G32: Incertidumbre asociada a la calibración | H32: 0.01 | I32: 2 | J32: 2 | L32: 2 | M32: 10.2
E33: B | F33: Rectangular | G33: Tolerancia (MEP) | H33: NA | I33: 2 | J33: NA | L33: 3 | M33: 11.2
C34: NA | D34: NA | E34: B | F34: Rectangular | G34: Resolución | H34: NA | I34: NA | J34: NA | L34: 4 | M34: 10.5
E35: B | F35: Normal | G35: Incertidumbre asociada a la calibración | H35: NA | I35: 2 | J35: 2.2 | L35: 5 | M35: 9.4
E36: B | F36: Rectangular | G36: Tolerancia (MEP) | H36: NA | I36: 2 | J36: NA | L36: 6 | M36: 10.6
C37: NA | D37: NA | E37: B | F37: Rectangular | G37: Resolución | H37: NA | I37: NA | J37: NA | L37: 7 | M37: 11.2
E38: B | F38: Normal | G38: Incertidumbre asociada a la calibración | H38: NA | I38: 2.2 | J38: 2.1 | L38: 8 | M38: 10.2
E39: B | F39: Normal | G39: Tolerancia (MEP) | H39: NA | I39: NA | J39: NA | L39: 9 | M39: 9.5
C40: NA | D40: NA | E40: B | F40: Rectangular | G40: Resolución | H40: NA | I40: NA | J40: NA | L40: 10 | M40: 11 | R40: Columna1 | S40: Columna2 | T40: Columna3 | U40: Columna4 | V40: Columna5 | W40: Columna6 | X40: Columna7
E41: B | F41: Normal | G41: Incertidumbre asociada a la calibración | H41: NA | I41: NA | J41: 2 | L41: n | M41: =COUNT(M31:M40) -> 10
E42: B | F42: Normal | G42: Tolerancia (MEP) | H42: NA | I42: NA | J42: NA | L42: Desviación estandar | M42: =_xlfn.STDEV.P(M31:M40) -> 0.6112282716 | R42: =C31 -> Termómetro | S42: Tolerancia | T42: =IF(H30="NA","NA",IF(F30="Rectangular",(H30/SQRT(3)),IF(F30="Triangular",(H30/SQRT(6)),(H30/I30)))) -> NA | U42: Resolusión | V42: =IF(H31="NA","NA",IF(G31="Rectangular",(H31/SQRT(3)),(H31/SQRT(6)))) -> 0.04082482905 | W42: Calibración | X42: =IF(H32="NA","NA",(H32/I32)) -> 0.005
C43: NA | D43: NA | E43: B | F43: Rectangular | G43: Resolución | H43: NA | I43: NA | J43: NA | L43: Promedio | M43: =AVERAGE(M31:M40) -> 10.38 | R43: =C34 -> NA | S43: Tolerancia | T43: =IF(H33="NA","NA",IF(F33="Rectangular",(H33/SQRT(3)),IF(F33="Triangular",(H33/SQRT(6)),(H33/I33)))) -> NA | U43: Resolusión | V43: =IF(H34="NA","NA",IF(G34="Rectangular",(H34/SQRT(3)),(H34/SQRT(6)))) -> NA | W43: Calibración | X43: =IF(H35="NA","NA",(H35/I35)) -> NA
E44: B | F44: Normal | G44: Incertidumbre asociada a la calibración | H44: NA | I44: NA | J44: 2 | R44: =C37 -> NA | S44: Tolerancia | T44: =IF(H36="NA","NA",IF(F36="Rectangular",(H36/SQRT(3)),IF(F36="Triangular",(H36/SQRT(6)),(H36/I36)))) -> NA | U44: Resolusión | V44: =IF(H37="NA","NA",IF(G37="Rectangular",(H37/SQRT(3)),(H37/SQRT(6)))) -> NA | W44: Calibración | X44: =IF(H38="NA","NA",(H38/I38)) -> NA
R45: =C40 -> NA | S45: Tolerancia | T45: =IF(H39="NA","NA",IF(F39="Rectangular",(H39/SQRT(3)),IF(F39="Triangular",(H39/SQRT(6)),(H39/I39)))) -> NA | U45: Resolusión | V45: =IF(H37="NA","NA",IF(G37="Rectangular",(H37/SQRT(3)),(H37/SQRT(6)))) -> NA | W45: Calibración | X45: =IF(H41="NA","NA",(H41/I41)) -> NA
C46: Patrón | E46: Incertidumbre asociada | G46: Factor de cobertura, k | K46: CORRECCIÓN POR TEMPERATURA | R46: =C43 -> NA | S46: Tolerancia | T46: =IF(H42="NA","NA",IF(F42="Rectangular",(H42/SQRT(3)),IF(F42="Triangular",(H42/SQRT(6)),(H42/I42)))) -> NA | U46: Resolusión | V46: =IF(H43="NA","NA",IF(G43="Rectangular",(H43/SQRT(3)),(H43/SQRT(6)))) -> NA | W46: Calibración | X46: =IF(H44="NA","NA",(H44/I44)) -> NA
C47: BUFFER 10 | E47: 0.0005 | F47: =IF(E47="","0",E47) -> 0.0005 | G47: 2 | I47: =IF(N(G47<1.5),"1",G47) -> 2 | K47: Corección 1 | L47: =(N17*0.00021*ABS(20-O17))/SQRT(3) -> 0
K48: Corección 2 | L48: =(N18*0.00021*ABS(20-O18))/SQRT(3) -> 0
K49: Corección 3 | L49: =(N19*0.00021*ABS(20-O19))/SQRT(3) -> 0
K50: Corección 4 | L50: =(N20*0.00021*ABS(20-O20))/SQRT(3) -> 0
A55: CUANTIFICACIÓN DE FUENTES
C57: Componente de la incertidumbre tipica u(xi) | F57: Tipo | G57: Contribución | H57: Incertidumbre tipica u(xi) | J57: Coeficiente de sensibilidad ci | K57: Incertidumbre tipica combinada uc(y) | L57: Grados de libertad νi | M57: Grados de libertad efectivos νeff | N57: Incertidumbre Expandida U
C58: =F17 -> Temperatura | D58: NO | E58: =E59 -> Termómetro | F58: Tolerancia (MEP) | G58: =VLOOKUP(E58,Tabla1[],3,FALSE) -> NA | H58: =IF(D58="SI",SQRT(SUMSQ(G58:G60,L47)),SQRT(SUMSQ(G58:G60))) -> 0.0411298756 | J58: 1 | K58: =SQRT(SUMSQ(H58*J58+H61*J61+H64*J64+H67/J67+H70*J70+H73*J73+H74*J74)) -> 0.2346672265 | L58: ∞ | M58: =K58^4/(H73^4/L73) -> 19.5541317 | N58: =K58*M76 -> 0.5115745537
E59: Termómetro | F59: Resolución | G59: =VLOOKUP(E59,Tabla1[],5,FALSE) -> 0.04082482905 | L59: ∞
E60: =E59 -> Termómetro | F60: Incertidumbre asociada a la calibración | G60: =VLOOKUP(E60,Tabla1[],7,FALSE) -> 0.005 | L60: ∞
C61: =F18 -> ga | D61: NO | E61: =E62 -> NA | F61: Tolerancia (MEP) | G61: =VLOOKUP(E61,Tabla1[],3,FALSE) -> NA | H61: =IF(D61="SI",SQRT(SUMSQ(G61:G63,L48)),SQRT(SUMSQ(G61:G63))) -> 0 | J61: 1 | L61: ∞
E62: NA | F62: Resolución | G62: =VLOOKUP(E62,Tabla1[],5,FALSE) -> NA | L62: ∞
E63: =E62 -> NA | F63: Incertidumbre asociada a la calibración | G63: =VLOOKUP(E63,Tabla1[],7,FALSE) -> NA | L63: ∞
C64: =F19 -> vol | D64: NO | E64: =E65 -> NA | F64: Tolerancia (MEP) | G64: =VLOOKUP(E64,Tabla1[],3,FALSE) -> NA | H64: =IF(D64="SI",SQRT(SUMSQ(G64:G66,L49)),SQRT(SUMSQ(G64:G66))) -> 0 | J64: 1 | L64: ∞
E65: NA | F65: Resolución | G65: =VLOOKUP(E65,Tabla1[],5,FALSE) -> NA | L65: ∞
E66: =E65 -> NA | F66: Incertidumbre asociada a la calibración | G66: =VLOOKUP(E66,Tabla1[],7,FALSE) -> NA | L66: ∞
C67: =F20 -> 0 | D67: ¿Es un componente volumétrico? | E67: =E68 -> NA | F67: Tolerancia (MEP) | G67: =VLOOKUP(E67,Tabla1[],3,FALSE) -> NA | H67: =IF(D67="SI",SQRT(SUMSQ(G67:G69,L50)),SQRT(SUMSQ(G67:G69))) -> 0 | J67: 1 | L67: ∞
E68: NA | F68: Resolución | G68: =VLOOKUP(E68,Tabla1[],5,FALSE) -> NA | L68: ∞
E69: =E68 -> NA | F69: Incertidumbre asociada a la calibración | G69: =VLOOKUP(E69,Tabla1[],7,FALSE) -> NA | L69: ∞
C70: =F21 -> 0 | D70: ¿Es un componente volumétrico? | E70: =E71 -> NA | F70: Tolerancia (MEP) | G70: =VLOOKUP(E70,Tabla1[],3,FALSE) -> NA | H70: =IF(D70="SI",SQRT(SUMSQ(G70:G72,N51)),SQRT(SUMSQ(G70:G72))) -> 0 | J70: 1 | L70: ∞
E71: NA | F71: Resolución | G71: =VLOOKUP(E71,Tabla1[],5,FALSE) -> NA | L71: ∞
E72: =E71 -> NA | F72: Incertidumbre asociada a la calibración | G72: =VLOOKUP(E72,Tabla1[],7,FALSE) -> NA | L72: ∞
C73: Precisión relativa a la repetibilidad del método | F73: =M42 -> 0.6112282716 | H73: =IF(M42>0,F73/SQRT(M41),"") -> 0.1932873509 | J73: 1 | L73: =M41-1 -> 9
C74: =F23 -> Patron de referencia | F74: =F47/I47 -> 0.00025 | H74: =F74 -> 0.00025 | J74: 1 | L74: ∞
J75: Factor de cobertura para: grados de libertad con un nivel de confianza deseado del 95,45 % | M75: =ROUND(M58,0) -> 20
M76: =+LOOKUP(M75,R14:R37,S14:S37) -> 2.18
A78: EXPRESIÓN RESULTADO
E80: =+F16 -> pH | H80: =M43 -> 10.38
E81: Incertidumbre expandida a 95,45 % | H81: =N58 -> 0.5115745537
A84: CONTRIBUCIÓN DE FUENTES
E86: Componente de la incertidumbre tipica u(xi) | H86: Contribución %
E87: =C58 -> Temperatura | H87: =H58*J58*100/(SUM(H58*J58+H61*J61+H64*J64+H67*J67+H70*J70+H73*J73+H74*J74)) -> 17.52689381
E88: =C61 -> ga | H88: =H61*J61*100/(SUM(H58*J58+H61*J61+H64*J64+H67*J67+H70*J70+H73*J73+H74*J74)) -> 0
E89: =C64 -> vol | H89: =H64*J64*100/(SUM(H58*J58+H61*J61+H64*J64+H67*J67+H70*J70+H73*J73+H74*J74)) -> 0
E90: =C67 -> 0 | H90: =H67*J67*100/(SUM(H58*J58+H61*J61+H64*J64+H67*J67+H70*J70+H73*J73+H74*J74)) -> 0
E91: =C70 -> 0 | H91: =H70*J70*100/(SUM(H58*J58+H61*J61+H64*J64+H67*J67+H70*J70+H73*J73+H74*J74)) -> 0
E92: =C73 -> Precisión relativa a la repetibilidad del método | H92: =SUM(H73*J73)*100/(SUM(H58*J58+H61*J61+H64*J64+H67*J67+H70*J70+H73*J73+H74*J74)) -> 82.36657235
E93: =C74 -> Patron de referencia | H93: =H1*J74*100/(SUM(H58*J58+H61*J61+H64*J64+H67*J67+H70*J70+H73*J73+H74*J74)) -> 0
A103: HISTORIAL DE CAMBIOS
A105: VERSIÓN | C105: FECHA | D105: DESCRIPCIÓN
A106: 01 | C106: 2018-11-06 | D106: Creación del documento con base a la nueva estructura del SGI.
A107: 02 | C107: 2020-12-11 | D107: Nueva versión producto de la actualización de la documentación del Sistema Integrado de Gestión, por parte del funcionario Renzzo González.
B108: 3 | C108: 2025-07-17 | D108: Se actualiza el Formato de acuerdo con el memorando enviado por la OAP memorando 20251100097283 lineamientos para la actualización documental en el marco de la implementación del aplicativo suite visión. El código pasa de M-S-LC-F077 a SLC-F077.
A109: ELABORÓ: Elizabeth González Mateus Contratista Laboratorio de Calidad Ambiental | F109: REVISÓ: Carlos Martín Velásquez Ramírez Contratista Líder Técnico Grupo Laboratorio de Calidad Ambiental | K109: APROBÓ: Claudia María Ávila Laverde Coordinadora Grupo Laboratorio de Calidad Ambiental

Sheet Hoja1 (hidden)
C3: W1 | D3: W2 | E3: W5 | F3: W3 | G3: W4 | H3: W6
B4: B2E | C4: 103.4 | D4: 114.8 | E4: 11.4 | F4: 102.3 | G4: 103.2 | H4: 0.9 | I4: 10.5
B5: B2E | C5: 99.6 | D5: 110.2 | E5: 10.6 | F5: 97.7 | G5: 98.4 | H5: 0.7 | I5: 9.9
B6: B2E | C6: 101.5 | D6: 114 | E6: 12.5 | F6: 99.4 | G6: 100.4 | H6: 1 | I6: 11.5
B7: B2E | C7: 93.9 | D7: 109 | E7: 15.1 | F7: 97.6 | G7: 98.4 | H7: 0.8 | I7: 14.3
B8: B2E | C8: 104.1 | D8: 125.3 | E8: 21.2 | F8: 102.9 | G8: 106.3 | H8: 3.4 | I8: 17.8
B9: PROME | E9: 14.16 | H9: 1.36 | I9: 12.8
B10: desv | E10: 4.286373759 | H10: 1.145862121 | I10: 3.264965543

Sheet Incerdumbre con derivadas parci
D1: FORMATO ESTIMACIÓN DE LA INCERTIDUMBRE CON DERIVADAS PARCIALES | P1: Código: SLC-F077
P2: Versión: 03
P3: Fecha: 17/07/2025
P4: Página: 1 de 1
C6: MÉTODO | E6: DETERMINACIÓN DE DEMANDA BIOQUÍMICA DE OXÍGENO
C7: REFERENCIA | E7: S.M. 5210B
C8: INSTRUCTIVO DE ENSAYO | E8: M-S-LC-I025 INSTRUCTIVO DE ENSAYO DETERMINACIÓN DE DEMANDA BIOQUÍMICA
C9: MATRIZ | E9: AGUA SUPERFICIAL- RESIDUAL.
C10: DATA | E10: YSI-CÁLCULOS DE CONFIRMACIÓN O VALIDACIÓN DEL MÉTODO DBO5.
A12: DEFINICIÓN DE LAS FUENTES DE INCERTIDUMBRE
T13: Tabla G.2 GUM 2008
T15: 0 | U15: 13.97
T16: 1 | U16: 13.97
T17: 2 | U17: 4.53
D18: DBO5 | E18: DBO como mg O2/L | L18: Valor promedio | N18: VOLUMEN | O18: TEMPERATURA | T18: 3 | U18: 3.31
D19: B | E19: Volumen utilizado para la muestra, mL | L19: =M45 -> 3.560571429 | M19: ==> | N19: 3.125 | O19: 23 | T19: 4 | U19: 2.87
D20: A | E20: Volumen utillizado para el blanco, mL | L20: =N45 -> 3.767428571 | M20: ==> | N20: 3.5 | O20: 23 | T20: 5 | U20: 2.65
D21: N | E21: Normalidad | L21: =O45 -> 0.03976666667 | M21: ==> | T21: 6 | U21: 2.52
D22: V | E22: Volumen de muestra, mL | L22: =P45 -> 2.5 | M22: ==> | N22: 2.5 | O22: 23 | T22: 7 | U22: 2.43
L23: =#REF! ->  | M23: ==> | T23: 8 | U23: 2.37
T24: 9 | U24: 2.32
T25: 10 | U25: 2.28
T26: 11 | U26: 2.25
T27: 12 | U27: 2.23
A28: DATA APORTADA | T28: 13 | U28: 2.21
T29: 14 | U29: 2.2
D30: Equipos/Instrumentos | E30: Rango | F30: Fuentes de incertidumbre | G30: Tipo | H30: Distribución | I30: Valor | J30: Factor de cobertura, k | L30: Precisión del método | T30: 15 | U30: 2.18
F31: Tolerancia (MEP) | G31: B | H31: Rectangular | I31: NA | J31: NA | L31: No. de ensayo | M31: Variables de la formula | Q31: Resultado final | T31: 3000 | U31: 2 | X31: =D32 -> Bureta | Y31: Tolerancia | Z31: =IF(I31="NA","NA",IF(H31="Rectangular",(I31/SQRT(3)),IF(H31="Triangular",I31/SQRT(6),(I31/J31)))) -> NA | AA31: Resolusión | AB31: =IF(I32="NA","NA",IF(H32="Rectangular",(I32/SQRT(3)),(I32/SQRT(6)))) -> 0.01154700538 | AC31: Incertidumbre asociada a la calibración | AD31: =IF(I33="NA","NA",(I33/J33)) -> 0.002889908257
D32: Bureta | E32: 2-20 | F32: Resolución | G32: B | H32: Rectangular | I32: 0.02 | J32: NA | M32: =D19 -> B | N32: =D20 -> A | O32: =D21 -> N | P32: =D22 -> V | Q32: =D18 -> DBO5 | X32: =D35 -> Balanza Analítica | Y32: Tolerancia | Z32: =IF(I34="NA","NA",IF(H34="Rectangular",(I34/SQRT(3)),IF(H34="Triangular",I34/SQRT(6),(I34/J34)))) -> NA | AA32: Resolusión | AB32: =IF(I35="NA","NA",IF(H35="Rectangular",(I35/SQRT(3)),(I35/SQRT(6)))) -> 5.773502692e-05 | AC32: Incertidumbre asociada a la calibración | AD32: =IF(I36="NA","NA",(I36/J36)) -> 0.0001
F33: Incertidumbre asociada a la calibración | G33: B | H33: Normal | I33: 0.0063 | J33: 2.18 | L33: 1 | M33: 3.566 | N33: 3.704 | O33: 0.04 | P33: 2.5 | Q33: 20 | X33: =D38 -> Pipeta 2,5 | Y33: Tolerancia | Z33: =IF(I37="NA","NA",IF(H37="Rectangular",(I37/SQRT(3)),IF(H37="Triangular",I37/SQRT(6),(I37/J37)))) -> 0.004082482905 | AA33: Resolusión | AB33: =IF(I38="NA","NA",IF(H38="Rectangular",(I38/SQRT(3)),(I38/SQRT(6)))) -> NA | AC33: Incertidumbre asociada a la calibración | AD33: =IF(I39="NA","NA",(I39/J39)) -> NA
F34: Tolerancia (MEP) | G34: B | H34: Triangular | I34: NA | J34: NA | L34: 2 | M34: 3.576 | N34: 3.726 | P34: 2.5 | Q34: 18 | X34: =D41 -> Balon aforado | Y34: Tolerancia | Z34: =IF(I40="NA","NA",IF(H40="Rectangular",(I40/SQRT(3)),IF(H40="Triangular",I40/SQRT(6),(I40/J40)))) -> 0.004082482905 | AA34: Resolusión | AB34: =IF(I41="NA","NA",IF(H41="Rectangular",(I41/SQRT(3)),(I41/SQRT(6)))) -> NA | AC34: Incertidumbre asociada a la calibración | AD34: =IF(I42="NA","NA",(I42/J42)) -> NA
D35: Balanza Analítica | E35: 0,001 - 210 g | F35: Resolución | G35: B | H35: Rectangular | I35: 0.0001 | J35: NA | L35: 3 | M35: 3.558 | N35: 3.838 | P35: 2.5 | Q35: 22 | X35: =D44 -> Pipeta 1,5 | Y35: Tolerancia | Z35: =IF(I43="NA","NA",IF(H43="Rectangular",(I43/SQRT(3)),IF(H43="Triangular",I43/SQRT(6),(I43/J43)))) -> NA | AA35: Resolusión | AB35: =IF(I44="NA","NA",IF(H44="Rectangular",(I44/SQRT(3)),(I44/SQRT(6)))) -> NA | AC35: Incertidumbre asociada a la calibración | AD35: =IF(I45="NA","NA",(I45/J45)) -> 0.00075
F36: Incertidumbre asociada a la calibración | G36: B | H36: Normal | I36: 0.0002 | J36: 2 | L36: 4 | M36: 3.578 | N36: 3.782 | O36: 0.0395 | P36: 2.5 | Q36: 20 | X36: =D46 -> NA
F37: Tolerancia (MEP) | G37: B | H37: Triangular | I37: 0.01 | J37: NA | L37: 5 | M37: 3.61 | N37: 3.8 | P37: 2.5 | Q37: 21
D38: Pipeta 2,5 | E38: 2.5 | F38: Resolución | G38: B | H38: Rectangular | I38: NA | J38: NA | L38: 6 | M38: 3.604 | N38: 3.806 | O38: 0.0394 | P38: 2.5 | Q38: 22
F39: Incertidumbre asociada a la calibración | G39: B | H39: Normal | I39: NA | J39: 2 | L39: 7 | M39: 3.506 | N39: 3.7 | P39: 2.5 | Q39: 20
F40: Tolerancia (MEP) | G40: B | H40: Triangular | I40: 0.01 | J40: NA | L40: 8 | M40: 3.492 | N40: 3.72 | O40: 0.0404 | P40: 2.5 | Q40: 22
D41: Balon aforado | E41: 1000 | F41: Resolución | G41: B | H41: Rectangular | I41: NA | J41: NA | L41: 9
F42: Incertidumbre asociada a la calibración | G42: B | H42: Normal | I42: NA | J42: 2 | L42: 10
F43: Tolerancia (MEP) | G43: B | H43: Normal | I43: NA | J43: =IF(H43="Normal","2",IF(H43="Rectangular",SQRT(3),SQRT(6))) -> 2 | L43: n | M43: =COUNT(M33:M42) -> 8 | N43: =COUNT(N33:N42) -> 8 | O43: =COUNT(O33:O42) -> 4 | P43: =COUNT(P33:P42) -> 8 | Q43: =COUNT(Q33:Q42) -> 8
D44: Pipeta 1,5 | E44: 1.5 | F44: Resolución | G44: B | H44: Rectangular | I44: NA | J44: NA | L44: Desviación estandar | M44: =IF(COUNT(M33:M42)=0,"",_xlfn.STDEV.P(M33:M42)) -> 0.0396602761 | N44: 0.0497166974 | O44: =IF(COUNT(O33:O42)=0,"",_xlfn.STDEV.P(O33:O42)) -> 0.0004023369235 | P44: 0 | Q44: =_xlfn.STDEV.P(Q33:Q42) -> 1.316956719
F45: Incertidumbre asociada a la calibración | G45: B | H45: Normal | I45: 0.0015 | J45: 2 | L45: Promedio | M45: =IF(COUNT(M33:M42)=0,"",AVERAGE(M34:M42)) -> 3.560571429 | N45: =IF(COUNT(N33:N42)=0,"",AVERAGE(N34:N42)) -> 3.767428571 | O45: =IF(COUNT(O33:O42)=0,"",AVERAGE(O34:O42)) -> 0.03976666667 | P45: =IF(COUNT(P33:P42)=0,"",AVERAGE(P34:P42)) -> 2.5 | Q45: =AVERAGE(Q33:Q42) -> 20.625
D46: NA | E46: NA
E48: Material de referencia | F48: Incertidumbre asociada | H48: Factor de cobertura, k | L48: Corrección de volumen por temperatura
E49: Material de referencia | F49: 0.0005 | G49: =IF(F49="","0",F49) -> 0.0005 | H49: =SQRT(3) -> 1.732050808 | I49: =IF(N(#REF!<1.5),"1",#REF!) ->  | L49: Corrección 1 | N49: =(N19*0.00021*ABS(20-O19))/SQRT(3) -> 0.001136658342
L50: Corrección 2 | N50: =(N20*0.00021*ABS(20-O20))/SQRT(3) -> 0.001273057344
L51: Corrección 3 | N51: =(N21*0.00021*ABS(20-O21))/SQRT(3) -> 0
L52: Corrección 4 | N52: =(N22*0.00021*ABS(20-O22))/SQRT(3) -> 0.000909326674
L53: Corrección 5 | N53: =(N23*0.00021*ABS(20-O23))/SQRT(3) -> 0
A57: CUANTIFICACIÓN DE FUENTES
D59: Componente de la incertidumbre tipica u(xi) | F59: Incertidumbre tipica u(xi) | K59: Derivada parcial | L59: Incertidumbre tipica combinada uc(y) | M59: Grados de libertad νi | N59: Grados de libertad efectivos νeff | O59: Incertidumbre Expandida U
F60: Fuente / equipo | G60: Tolerancia | H60: Resolusión | I60: Incertidumbre asociada a la calibración | J60: Incertidumbre tipica u(xi)
D61: =E19 -> Volumen utilizado para la muestra, mL | E61: SI | F61: Bureta | G61: =VLOOKUP(F61,$X$30:$AD$36,3,FALSE) -> NA | H61: =VLOOKUP(F61,$X$30:$AD$36,5,FALSE) -> 0.01154700538 | I61: =VLOOKUP(F61,$X$31:$AD$36,7,FALSE) -> 0.002889908257 | J61: =IF(E61="SI",SQRT(SUMSQ(G61:I63,N49)),SQRT(SUMSQ(G61:I63))) -> 0.01842807865 | K61: =IF(D61<>0,J61/L19,"") -> 0.005175595834 | L61: =SQRT(SUMSQ(K61:K75)) * Q45 -> 2.126950445 | M61: ∞ | N61: =((L61)^4)/(IF(M63="∞","0",J61^4/M63)+IF(M66="∞","0",J64^4/M66)+IF(M69="∞","0",J67^4/M69)+IF(M72="∞","0",J70^4/M72)+IF(M75="∞","0",J73^4/M75)) -> 446951922.1 | O61: =L61*N77 -> 4.253900889 | P61: =IF(J61="NA","Se realiza estimación de incertidumbre de la estandarización de forma independiente","") -> 
F62: NA | G62: =VLOOKUP(F62,$X$30:$AD$36,3,FALSE) -> 0 | H62: =VLOOKUP(F62,$X$30:$AD$36,5,FALSE) -> 0 | I62: =VLOOKUP(F62,$X$31:$AD$36,7,FALSE) -> 0 | M62: ∞
F63: Repetibilidad 1 | G63: =IF(F63="Material de referencia",$F$49/$H$49,IF(F63="Repetibilidad 1",$M$44/SQRT($M$43),IF(F63="Repetibilidad 2",$N$44/SQRT($N$43),IF(F63="Repetibilidad 3",$O$44/SQRT(O43),IF(F63="Repetibilidad 4",$P$44/SQRT($P$43),""))))) -> 0.01402202509 | M63: =IF(F63="Material de referencia","∞",IF(F63="Repetibilidad 1",$M$43-1,IF(F63="Repetibilidad 2",N$43-1, IF(F63="Repetibilidad 3",$O$43-1,"∞")))) -> 7
D64: =E20 -> Volumen utillizado para el blanco, mL | E64: SI | F64: Bureta | G64: =VLOOKUP(F64,$X$30:$AD$36,3,FALSE) -> NA | H64: =VLOOKUP(F64,$X$30:$AD$36,5,FALSE) -> 0.01154700538 | I64: =VLOOKUP(F64,$X$31:$AD$36,7,FALSE) -> 0.002889908257 | J64: =IF(E64="SI",SQRT(SUMSQ(G64:I66,N50)),SQRT(SUMSQ(G64:I66))) -> 0.0212667423 | K64: =IF(D64<>0,J64/L20,"0") -> 0.005644895954 | M64: ∞ | P64: =IF(J64="NA","Se realiza estimación de incertidumbre de la estandarización de forma independiente","") -> 
F65: NA | G65: 0 | H65: 0 | I65: 0 | M65: ∞
F66: Repetibilidad 2 | G66: =IF(F66="Material de referencia",$F$49/$H$49,IF(F66="Repetibilidad 1",$M$44/SQRT($M$43),IF(F66="Repetibilidad 2",$N$44/SQRT($N$43),IF(F66="Repetibilidad 3",$O$44/SQRT(O43),IF(F66="Repetibilidad 4",$P$44/SQRT($P$43),""))))) -> 0.01757750693 | M66: =IF(F66="Material de referencia","∞",IF(F66="Repetibilidad 1",$M$43-1,IF(F66="Repetibilidad 2",N$43-1, IF(F66="Repetibilidad 3",$O$43-1,"∞")))) -> 7
D67: =E21 -> Normalidad | E67: NO | F67: Balon aforado | G67: 0.004082482905 | H67: =VLOOKUP(F67,$X$30:$AD$36,5,FALSE) -> NA | I67: =VLOOKUP(F67,$X$31:$AD$36,7,FALSE) -> NA | J67: =IF(E67="SI",SQRT(SUMSQ(G67:I69,N51)),SQRT(SUMSQ(G67:I69))) -> 0.004089066978 | K67: =IF(D67<>0,J67/L21,"0") -> 0.1028264957 | M67: ∞ | P67: =IF(J67="NA","Se realiza estimación de incertidumbre de la estandarización de forma independiente","") -> 
F68: Balanza Analítica | G68: NA | H68: 5.773502692e-05 | I68: 0.0001 | M68: ∞
F69: Repetibilidad 3 | G69: =IF(F69="Material de referencia",$F$49/$H$49,IF(F69="Repetibilidad 1",$M$44/SQRT($M$43),IF(F69="Repetibilidad 2",$N$44/SQRT($N$43),IF(F69="Repetibilidad 3",$O$44/SQRT(O43),IF(F69="Repetibilidad 4",$P$44/SQRT($P$43),""))))) -> 0.0002011684617 | M69: =IF(F69="Material de referencia","∞",IF(F69="Repetibilidad 1",$M$43-1,IF(F69="Repetibilidad 2",N$43-1, IF(F69="Repetibilidad 3",$O$43-1,"∞")))) -> 3
D70: =E22 -> Volumen de muestra, mL | E70: SI | F70: Pipeta 2,5 | G70: 0.004082482905 | H70: =VLOOKUP(F70,$X$30:$AD$36,5,FALSE) -> NA | I70: =VLOOKUP(F70,$X$31:$AD$36,7,FALSE) -> NA | J70: =IF(E70="SI",SQRT(SUMSQ(G70:I72,N52)),SQRT(SUMSQ(G70:I72))) -> 0.004182528143 | K70: =IF(D70<>0,J70/L22,"0") -> 0.001673011257 | M70: ∞ | P70: =IF(J70="NA","Se realiza estimación de incertidumbre de la estandarización de forma independiente","") -> 
F71: NA | G71: 0 | H71: 0 | I71: 0 | M71: ∞
F72: Repetibilidad 4 | G72: =IF(F72="Material de referencia",$F$49/$H$49,IF(F72="Repetibilidad 1",$M$44/SQRT($M$43),IF(F72="Repetibilidad 2",$N$44/SQRT($N$43),IF(F72="Repetibilidad 3",$O$44/SQRT(O43),IF(F72="Repetibilidad 4",$P$44/SQRT($P$43),""))))) -> 0 | M72: =IF(F72="Material de referencia","∞",IF(F72="Repetibilidad 1",$M$43-1,IF(F72="Repetibilidad 2",N$43-1, IF(F72="Repetibilidad 3",$O$43-1,"∞")))) -> ∞
D73: =E23 -> 0 | E73: ¿Es un componente volumétrico? | F73: NA | G73: 0 | H73: =VLOOKUP(F73,$X$30:$AD$36,5,FALSE) -> 0 | I73: =VLOOKUP(F73,$X$31:$AD$36,7,FALSE) -> 0 | J73: =IF(E73="SI",SQRT(SUMSQ(G73:I75,N53)),SQRT(SUMSQ(G73:I75))) -> 0 | K73: =IF(D73<>0,J73/L23,"0") -> 0 | M73: ∞ | P73: =IF(J73="NA","Se realiza estimación de incertidumbre de la estandarización de forma independiente","") -> 
F74: NA | G74: 0 | H74: 0 | I74: 0 | M74: ∞
F75: NA | G75: =IF(F75="Material de referencia",$F$49/$H$49,IF(F75="Repetibilidad 1",$M$44/SQRT($M$43),IF(F75="Repetibilidad 2",$N$44/SQRT($N$43),IF(F75="Repetibilidad 3",$O$44/SQRT(O43),IF(F75="Repetibilidad 4",$P$44/SQRT($P$43),""))))) ->  | M75: =IF(F75="Material de referencia","∞",IF(F75="Repetibilidad 1",$M$43-1,IF(F75="Repetibilidad 2",N$43-1, IF(F75="Repetibilidad 3",$O$43-1,"∞")))) -> ∞
L76: Factor de cobertura para: grados de libertad con un nivel de confianza deseado del 95,45 % | N76: =N61 -> 446951922.1
N77: =+LOOKUP(N76,T14:T31,U14:U31) -> 2
A79: EXPRESIÓN RESULTADO
E81: =+E18 -> DBO como mg O2/L | J81: =Q45 -> 20.625
E82: Incertidumbre expandida a 95,45 % | J82: =O61 -> 4.253900889
A85: CONTRIBUCIÓN DE FUENTES
H87: Componente de la incertidumbre tipica u(xi) | J87: Contribución %
H88: =D61 -> Volumen utilizado para la muestra, mL | J88: =K61*100/(SUM($K$61+$K$64+$K$67+$K$70+$K$73)) -> 4.488029736
H89: =D64 -> Volumen utillizado para el blanco, mL | J89: =K64*100/(SUM($K$61+$K$64+$K$67+$K$70+$K$73)) -> 4.894984406
H90: =D67 -> Normalidad | J90: =K67*100/(SUM($K$61+$K$64+$K$67+$K$70+$K$73)) -> 89.16623033
H91: =D70 -> Volumen de muestra, mL | J91: =K70*100/(SUM($K$61+$K$64+$K$67+$K$70+$K$73)) -> 1.450755529
H92: =D73 -> 0 | J92: =K73*100/(SUM($K$61+$K$64+$K$67+$K$70+$K$73)) -> 0
A105: HISTORIAL DE CAMBIOS
A107: VERSIÓN | C107: FECHA | D107: DESCRIPCIÓN
A108: 01 | C108: 2018-11-06 | D108: Creación del documento con base a la nueva estructura del SGI.
A109: 02 | C109: 2020-12-11 | D109: Nueva versión producto de la actualización de la documentación del Sistema Integrado de Gestión, por parte del funcionario Renzzo González.
B110: 3 | C110: 2025-07-17 | D110: Se actualiza el Formato de acuerdo con el memorando enviado por la OAP memorando 20251100097283 lineamientos para la actualización documental en el marco de la implementación del aplicativo suite visión. El código pasa de M-S-LC-F077 a SLC-F077.
A111: ELABORÓ: Elizabeth González Mateus Contratista Laboratorio de Calidad Ambiental | G111: REVISÓ: Carlos Martín Velásquez Ramírez Contratista Líder Técnico Grupo Laboratorio de Calidad Ambiental | M111: APROBÓ: Claudia María Ávila Laverde Coordinadora Grupo Laboratorio de Calidad Ambiental

Sheet Hoja2
